fUSD/lending_fUSD_20240624
["ID","MTS","AMOUNT","RATE_DAILY","PERIOD"]
[330326581,1719258318062,-662.41,0.00045753,120]
[330326582,1719258318103,-500.0,0.00045753,120]
[330326583,1719258318145,-500.0,0.00045753,120]
[330326584,1719258318189,-500.0,0.00045753,120]
[330326585,1719258318231,-182.45455122,0.00045753,120]
[330326586,1719258318280,-703.65,0.00045753,120]
[330326587,1719258318321,-574.53,0.00045753,120]
[330326588,1719258318367,-273.7,0.00045753,120]
[330326589,1719258318418,-500.0,0.00045753,120]
[330326590,1719258318460,-500.0,0.00045753,120]
[330326591,1719258318502,-500.0,0.00045753,120]
[330326592,1719258318544,-1500.0,0.00045753,120]
[330326593,1719258318586,-531.7,0.00045753,120]
[330326594,1719258318630,-557.88,0.00045753,120]
[330326596,1719258318672,-500.0,0.00045753,120]
[330326599,1719258318715,-533.67,0.00045753,120]
[330326601,1719258318760,-783.5,0.00045753,120]
[330326602,1719258318802,-1253.81,0.00045753,120]
[330326603,1719258318844,-500.0,0.00045753,120]
[330326604,1719258318886,-500.0,0.00045753,120]
[330326605,1719258318927,-1270.42,0.00045753,120]
[330326606,1719258318970,-900.35,0.00045753,120]
[330326607,1719258319016,-500.0,0.00045753,120]
[330326608,1719258319061,-571.5676566,0.00045753,120]
[330326609,1719258319108,-500.0,0.00045753,120]
[330326610,1719258319157,-500.0,0.00045753,120]
[330326611,1719258319204,-1708.9,0.00045753,120]
[330326612,1719258319247,-500.0,0.00045753,120]
[330326613,1719258319290,-500.0,0.00045753,120]
[330326614,1719258319334,-500.0,0.00045753,120]
[330326615,1719258319378,-440.49756078,0.00045753,120]
[330326616,1719258319421,-500.0,0.00045753,120]
[330326617,1719258319465,-500.0,0.00045753,120]
[330326618,1719258319516,-500.0,0.00045753,120]
[330326619,1719258319560,-500.0,0.00045753,120]
[330326620,1719258319604,-500.0,0.00045753,120]
[330326621,1719258319649,-500.0,0.00045753,120]
[330326622,1719258319692,-1042.74,0.00045753,120]
[330326623,1719258319736,-500.0,0.00045753,120]
[330326624,1719258319781,-500.0,0.00045753,120]
[330326625,1719258319823,-500.0,0.00045753,120]
[330326626,1719258319865,-500.0,0.00045753,120]
[330326627,1719258319912,-1093.23,0.00045753,120]
[330326628,1719258319960,-500.0,0.00045753,120]
[330326629,1719258320003,-605.73,0.00045753,120]
[330326630,1719258320044,-500.0,0.00045753,120]
[330326631,1719258320091,-500.0,0.00045753,120]
[330326632,1719258320138,-500.0,0.00045753,120]
[330326633,1719258320182,-150.0,0.00045753,120]
[330326634,1719258320227,-500.0,0.00045753,120]
[330326635,1719258320272,-785.26,0.00045753,120]
[330326636,1719258320315,-500.0,0.00045753,120]
[330326637,1719258320358,-500.0,0.00045753,120]
[330326638,1719258320400,-302.36191653,0.00045753,120]
[330326639,1719258320448,-838.61,0.00045753,120]
[330326640,1719258320492,-500.0,0.00045753,120]
[330326641,1719258320534,-500.0,0.00045753,120]
[330326642,1719258320578,-500.0,0.00045753,120]
[330326643,1719258320619,-500.0,0.00045753,120]
[330326644,1719258320665,-500.0,0.00045753,120]
[330326645,1719258320709,-438.44093604,0.00045753,120]
[330326646,1719258320751,-336.07916093,0.00045753,120]
[330326647,1719258320794,-500.0,0.00045753,120]
[330326648,1719258320836,-500.0,0.00045753,120]
[330326649,1719258320882,-500.0,0.00045753,120]
[330326650,1719258320924,-500.0,0.00045753,120]
[330326651,1719258320966,-500.0,0.00045753,120]
[330326652,1719258321007,-500.0,0.00045753,120]
[330326653,1719258321050,-655.63,0.00045753,120]
[330326654,1719258321093,-594.12,0.00045753,120]
[330326655,1719258321136,-500.0,0.00045753,120]
[330326656,1719258321179,-500.0,0.00045753,120]
[330326657,1719258321220,-849.72,0.00045753,120]
[330326658,1719258321423,-500.0,0.00045753,120]
[330326659,1719258321467,-500.0,0.00045753,120]
[330326660,1719258321511,-500.0,0.00045753,120]
[330326661,1719258321554,-529.21,0.00045753,120]
[330326662,1719258321604,-567.01,0.00045753,120]
[330326663,1719258321642,-500.0,0.00045753,120]
[330326664,1719258321685,-500.0,0.00045753,120]
[330326665,1719258321728,-500.0,0.00045753,120]
[330326666,1719258321771,-500.0,0.00045753,120]
[330326667,1719258321812,-500.0,0.00045753,120]
[330326668,1719258321853,-500.0,0.00045753,120]
[330326669,1719258321894,-500.0,0.00045753,120]
[330326670,1719258321934,-500.0,0.00045753,120]
[330326671,1719258321974,-500.0,0.00045753,120]
[330326672,1719258322014,-500.0,0.00045753,120]
[330326673,1719258322058,-500.0,0.00045753,120]
[330326674,1719258322101,-500.0,0.00045753,120]
[330326675,1719258322143,-2788.04,0.00045753,120]
[330326676,1719258322183,-500.0,0.00045753,120]
[330326677,1719258322225,-500.0,0.00045753,120]
[330326678,1719258322268,-152.94232865,0.00045753,120]
[330326679,1719258322310,-500.0,0.00045753,120]
[330326680,1719258322351,-500.0,0.00045753,120]
[330326681,1719258322393,-1166.09,0.00045753,120]
[330326682,1719258322433,-500.0,0.00045753,120]
[330326683,1719258322474,-500.0,0.00045753,120]
[330326684,1719258322515,-1262.68,0.00045753,120]
[330326685,1719258322558,-500.0,0.00045753,120]
[330326686,1719258322600,-243.95951905,0.00045753,120]
[330326687,1719258322642,-790.48,0.00045753,120]
[330326688,1719258322689,-500.0,0.00045753,120]
[330326689,1719258322731,-500.0,0.00045753,120]
[330326690,1719258322773,-500.0,0.00045753,120]
[330326691,1719258322814,-500.0,0.00045753,120]
[330326692,1719258322864,-500.0,0.00045753,120]
[330326693,1719258322906,-687.92,0.00045753,120]
[330326694,1719258322948,-500.0,0.00045753,120]
[330326695,1719258322993,-500.0,0.00045753,120]
[330326696,1719258323038,-766.33,0.00045753,120]
[330326697,1719258323080,-500.0,0.00045753,120]
[330326698,1719258323121,-500.0,0.00045753,120]
[330326699,1719258323167,-765.44,0.00045753,120]
[330326700,1719258323209,-500.0,0.00045753,120]
[330326701,1719258323252,-500.0,0.00045753,120]
[330326702,1719258323294,-1969.8,0.00045753,120]
[330326703,1719258323341,-500.0,0.00045753,120]
[330326704,1719258323388,-500.0,0.00045753,120]
[330326705,1719258323437,-500.0,0.00045753,120]
[330326706,1719258323486,-1694.12,0.00045753,120]
[330326707,1719258323530,-824.95,0.00045753,120]
[330326708,1719258323572,-553.17,0.00045753,120]
[330326709,1719258323612,-500.0,0.00045753,120]
[330326710,1719258323655,-1172.25,0.00045753,120]
[330326711,1719258323705,-571.93,0.00045753,120]
[330326712,1719258323747,-675.94,0.00045753,120]
[330326713,1719258323788,-819.57,0.00045753,120]
[330326714,1719258323828,-1195.67,0.00045753,120]
[330326715,1719258323867,-500.0,0.00045753,120]
[330326716,1719258323910,-500.0,0.00045753,120]
[330326717,1719258323951,-667.67,0.00045753,120]
[330326718,1719258323993,-804.5,0.00045753,120]
[330326719,1719258324035,-1165.11,0.00045753,120]
[330326720,1719258324078,-500.0,0.00045753,120]
[330326721,1719258324120,-500.0,0.00045753,120]
[330326722,1719258324165,-341.4,0.00045753,120]
[330326723,1719258324207,-1099.82,0.00045753,120]
[330326724,1719258324250,-816.17,0.00045753,120]
[330326725,1719258324294,-500.0,0.00045753,120]
[330326726,1719258324336,-500.0,0.00045753,120]
[330326727,1719258324377,-500.0,0.00045753,120]
[330326728,1719258324420,-500.0,0.00045753,120]
[330326729,1719258324465,-500.0,0.00045753,120]
[330326730,1719258324510,-627.61,0.00045753,120]
[330326731,1719258324554,-500.0,0.00045753,120]
[330326732,1719258324597,-500.0,0.00045753,120]
[330326733,1719258324640,-1399.72,0.00045753,120]
[330326734,1719258324694,-1021.58,0.00045753,120]
[330326735,1719258324741,-1516.79,0.00045753,120]
[330326736,1719258324789,-500.0,0.00045753,120]
[330326737,1719258324836,-500.0,0.00045753,120]
[330326738,1719258324881,-1038.38,0.00045753,120]
[330326739,1719258324923,-1562.7,0.00045753,120]
[330326740,1719258324965,-500.0,0.00045753,120]
[330326741,1719258325008,-500.0,0.00045753,120]
[330326742,1719258325053,-2386.52,0.00045753,120]
[330326743,1719258325097,-500.0,0.00045753,120]
[330326744,1719258325138,-500.0,0.00045753,120]
[330326745,1719258325183,-651.41,0.00045753,120]
[330326746,1719258325226,-531.38,0.00045753,120]
[330326747,1719258325267,-1212.63,0.00045753,120]
[330326748,1719258325310,-500.0,0.00045753,120]
[330326749,1719258325351,-500.0,0.00045753,120]
[330326750,1719258325393,-500.0,0.00045753,120]
[330326751,1719258325436,-500.0,0.00045753,120]
[330326752,1719258325479,-508.43,0.00045753,120]
[330326753,1719258325522,-932.91,0.00045753,120]
[330326754,1719258325565,-500.0,0.00045753,120]
[330326755,1719258325609,-500.0,0.00045753,120]
[330326756,1719258325655,-500.0,0.00045753,120]
[330326757,1719258325702,-500.0,0.00045753,120]
[330326758,1719258325746,-500.0,0.00045753,120]
[330326759,1719258325789,-506.19,0.00045753,120]
[330326760,1719258325831,-844.64,0.00045753,120]
[330326761,1719258325873,-660.39,0.00045753,120]
[330326762,1719258326091,-500.83,0.00045753,120]
[330326763,1719258326136,-682.01,0.00045753,120]
[330326764,1719258326180,-2912.3,0.00045753,120]
[330326765,1719258326222,-2243.25,0.00045753,120]
[330326766,1719258326264,-763.57,0.00045753,120]
[330326767,1719258326306,-500.0,0.00045753,120]
[330326768,1719258326349,-1080.37,0.00045753,120]
[330326769,1719258326395,-500.0,0.00045753,120]
[330326770,1719258326437,-775.89,0.00045753,120]
[330326771,1719258326480,-579.59,0.00045753,120]
[330326772,1719258326525,-712.8,0.00045753,120]
[330326773,1719258326569,-500.0,0.00045753,120]
[330326774,1719258326614,-500.0,0.00045753,120]
[330326775,1719258326657,-2552.8,0.00045753,120]
[330326776,1719258326705,-709.83,0.00045753,120]
[330326777,1719258326746,-500.0,0.00045753,120]
[330326778,1719258326787,-500.0,0.00045753,120]
[330326779,1719258326829,-892.32,0.00045753,120]
[330326780,1719258326869,-816.66,0.00045753,120]
[330326781,1719258326911,-2290.5,0.00045753,120]
[330326782,1719258326952,-500.0,0.00045753,120]
[330326783,1719258326999,-639.14,0.00045753,120]
[330326784,1719258327038,-500.0,0.00045753,120]
[330326785,1719258327080,-767.44,0.00045753,120]
[330326786,1719258327120,-500.0,0.00045753,120]
[330326787,1719258327172,-847.35,0.00045753,120]
[330326788,1719258327214,-500.0,0.00045753,120]
[330326789,1719258327255,-500.0,0.00045753,120]
[330326790,1719258327297,-1992.92,0.00045753,120]
[330326791,1719258327339,-500.0,0.00045753,120]
[330326792,1719258327387,-500.0,0.00045753,120]
[330326793,1719258327429,-500.0,0.00045753,120]
[330326794,1719258327471,-500.0,0.00045753,120]
[330326795,1719258327512,-500.0,0.00045753,120]
[330326796,1719258327550,-611.14,0.00045753,120]
[330326797,1719258327591,-500.0,0.00045753,120]
[330326798,1719258327635,-510.53,0.00045753,120]
[330326799,1719258327677,-995.0,0.00045753,120]
[330326800,1719258327719,-1398.2,0.00045753,120]
[330326801,1719258327760,-623.96,0.00045753,120]
[330326802,1719258327800,-811.57,0.00045753,120]
[330326803,1719258327842,-515.43,0.00045753,120]
[330326804,1719258327885,-500.0,0.00045753,120]
[330326805,1719258327927,-500.0,0.00045753,120]
[330326806,1719258327966,-500.0,0.00045753,120]
[330326807,1719258328007,-500.0,0.00045753,120]
[330326808,1719258328048,-669.18,0.00045753,120]
[330326809,1719258328089,-500.0,0.00045753,120]
[330326810,1719258328128,-500.0,0.00045753,120]
[330326811,1719258328172,-500.0,0.00045753,120]
[330326812,1719258328209,-500.0,0.00045753,120]
[330326813,1719258328249,-500.0,0.00045753,120]
[330326814,1719258328290,-500.0,0.00045753,120]
[330326815,1719258328330,-500.0,0.00045753,120]
[330326816,1719258328371,-500.0,0.00045753,120]
[330326817,1719258328411,-500.0,0.00045753,120]
[330326818,1719258328454,-500.0,0.00045753,120]
[330326819,1719258328498,-500.0,0.00045753,120]
[330326820,1719258328540,-500.0,0.00045753,120]
[330326821,1719258328584,-511.29,0.00045753,120]
[330326822,1719258328623,-639.21,0.00045753,120]
[330326823,1719258328669,-1932.92,0.00045753,120]
[330326824,1719258328709,-603.28,0.00045753,120]
[330326825,1719258328750,-500.0,0.00045753,120]
[330326826,1719258328793,-542.44,0.00045753,120]
[330326827,1719258328836,-500.0,0.00045753,120]
[330326828,1719258328879,-500.0,0.00045753,120]
[330326829,1719258328921,-745.89,0.00045753,120]
[330326830,1719258328962,-500.0,0.00045753,120]
[330326831,1719258329000,-500.0,0.00045753,120]
[330326832,1719258329041,-990.35,0.00045753,120]
[330326833,1719258329083,-500.0,0.00045753,120]
[330326834,1719258329131,-500.0,0.00045753,120]
[330326835,1719258329176,-346.5431607,0.00045753,120]
[330326836,1719258329220,-500.0,0.00045753,120]
[330326837,1719258329269,-722.46,0.00045753,120]
[330326838,1719258329314,-1160.71,0.00045753,120]
[330326839,1719258329359,-1290.82,0.00045753,120]
[330326840,1719258329403,-1238.72,0.00045753,120]
[330326841,1719258329442,-500.0,0.00045753,120]
[330326842,1719258329484,-500.0,0.00045753,120]
[330326843,1719258329525,-501.29,0.00045753,120]
[330326844,1719258329566,-500.0,0.00045753,120]
[330326845,1719258329607,-500.0,0.00045753,120]
[330326846,1719258329647,-660.18,0.00045753,120]
[330326847,1719258329695,-500.0,0.00045753,120]
[330326848,1719258329735,-1152.05,0.00045753,120]
[330326849,1719258329781,-909.58,0.00045753,120]
[330326850,1719258329820,-537.71,0.00045753,120]
[330326851,1719258329862,-500.0,0.00045753,120]
[330326852,1719258329905,-1089.47,0.00045753,120]
[330326853,1719258329945,-562.13,0.00045753,120]
[330326854,1719258329985,-500.0,0.00045753,120]
[330326855,1719258330027,-500.0,0.00045753,120]
[330326856,1719258330068,-594.01,0.00045753,120]
[330326857,1719258330110,-596.12,0.00045753,30]
[330326858,1719258330152,-532.81,0.00045753,120]
[330326859,1719258330193,-500.0,0.00045753,120]
[330326860,1719258330231,-2835.37,0.00045753,120]
[330326861,1719258330272,-2670.65,0.00045753,120]
[330326862,1719258330314,-500.0,0.00045753,120]
[330326863,1719258330355,-500.0,0.00045753,120]
[330326864,1719258330397,-500.0,0.00045753,120]
[330326865,1719258330440,-500.0,0.00045753,120]
[330326866,1719258330484,-1496.26,0.00045753,120]
[330326867,1719258330527,-833.92,0.00045753,120]
[330326868,1719258330570,-500.0,0.00045753,120]
[330326869,1719258330610,-1709.42,0.00045753,120]
[330326870,1719258330657,-1353.45,0.00045753,120]
[330326871,1719258330705,-599.03,0.00045753,120]
[330326872,1719258330750,-1063.0,0.00045753,120]
[330326873,1719258330793,-500.0,0.00045753,90]
[330326874,1719258330836,-500.0,0.00045753,120]
[330326875,1719258330877,-1406.68,0.00045753,120]
[330326876,1719258330923,-3948.04,0.00045753,120]
[330326877,1719258330964,-500.0,0.00045753,120]
[330326878,1719258331005,-800.27,0.00045753,120]
[330326879,1719258331047,-500.0,0.00045753,120]
[330326880,1719258331090,-1227.33,0.00045753,120]
[330326881,1719258331134,-8263.86,0.00045753,120]
[330326882,1719258331178,-1743.76,0.00045753,120]
[330326883,1719258331220,-1127.16,0.00045753,120]
[330326884,1719258331261,-436.29646283,0.00045753,120]
[330326885,1719258331304,-500.0,0.00045753,120]
[330326886,1719258331354,-2016.78,0.00045753,120]
[330326887,1719258331405,-1126.39,0.00045753,120]
[330326888,1719258331454,-1708.98,0.00045753,120]
[330326889,1719258331501,-1099.7,0.00045753,120]
[330326890,1719258331549,-1426.31,0.00045753,120]
[330326891,1719258331598,-500.0,0.00045753,120]
[330326892,1719258331648,-1323.01,0.00045753,120]
[330326893,1719258331704,-1770.99,0.00045753,120]
[330326894,1719258331751,-500.0,0.00045753,120]
[330326895,1719258331799,-886.44,0.00045753,120]
[330326896,1719258331848,-500.0,0.00045753,120]
[330326897,1719258331896,-500.0,0.00045753,120]
[330326898,1719258331942,-2248.85,0.00045753,120]
[330326899,1719258331989,-500.0,0.00045753,120]
[330326900,1719258332037,-1193.42,0.00045753,120]
[330326901,1719258332086,-500.0,0.00045753,120]
[330326902,1719258332135,-1627.12,0.00045753,120]
[330326903,1719258332194,-2029.01,0.00045753,120]
[330326904,1719258332240,-994.14,0.00045753,120]
[330326905,1719258332283,-500.0,0.00045753,120]
[330326906,1719258332331,-500.0,0.00045753,120]
[330326907,1719258332379,-1443.36,0.00045753,120]
[330326908,1719258332424,-609.82,0.00045753,120]
[330326909,1719258332471,-500.0,0.00045753,120]
[330326910,1719258332517,-500.0,0.00045753,90]
[330326911,1719258332561,-500.0,0.00045753,120]
[330326912,1719258332608,-861.71,0.00045753,120]
[330326913,1719258332653,-1411.55,0.00045753,120]
[330326914,1719258332704,-678.0,0.00045753,120]
[330326915,1719258332752,-959.44,0.00045753,120]
[330326916,1719258332797,-14849.4,0.00045753,120]
[330326917,1719258332841,-500.0,0.00045753,120]
[330326918,1719258332884,-1025.11,0.00045753,120]
[330326919,1719258332930,-500.0,0.00045753,120]
[330326920,1719258332972,-3657.05,0.00045753,120]
[330326921,1719258333023,-643.67,0.00045753,120]
[330326922,1719258333071,-500.0,0.00045753,120]
[330326923,1719258333117,-500.0,0.00045753,120]
[330326924,1719258333168,-921.25,0.00045753,120]
[330326925,1719258333223,-500.0,0.00045753,120]
[330326926,1719258333280,-500.0,0.00045753,120]
[330326927,1719258333334,-1522.85,0.00045753,120]
[330326928,1719258333379,-575.37,0.00045753,120]
[330326929,1719258333440,-566.76,0.00045753,120]
[330326930,1719258333489,-500.0,0.00045753,120]
[330326931,1719258333538,-500.0,0.00045753,120]
[330326932,1719258333588,-500.0,0.00045753,120]
[330326933,1719258333639,-909.24,0.00045753,120]
[330326934,1719258333693,-757.63,0.00045753,120]
[330326935,1719258333743,-1133.73,0.00045753,120]
[330326936,1719258333790,-606.66,0.00045753,120]
[330326937,1719258333837,-786.54,0.00045753,120]
[330326938,1719258333887,-500.0,0.00045753,120]
[330326939,1719258333933,-500.0,0.00045753,120]
[330326940,1719258333977,-500.0,0.00045753,120]
[330326941,1719258334023,-500.0,0.00045753,120]
[330326942,1719258334068,-2697.16,0.00045753,120]
[330326943,1719258334114,-500.0,0.00045753,120]
[330326944,1719258334162,-500.0,0.00045753,120]
[330326945,1719258334216,-648.35,0.00045753,120]
[330326946,1719258334272,-3832.32,0.00045753,120]
[330326947,1719258334319,-7738.66,0.00045753,120]
[330326948,1719258334368,-511.82,0.00045753,120]
[330326949,1719258334422,-500.0,0.00045753,120]
[330326950,1719258334470,-1651.64,0.00045753,120]
[330326951,1719258334515,-8679.15,0.00045753,120]
[330326952,1719258334562,-657.61,0.00045753,120]
[330326953,1719258334609,-500.0,0.00045753,120]
[330326954,1719258334653,-782.34,0.00045753,120]
[330326955,1719258334700,-3258.67,0.00045753,120]
[330326956,1719258334747,-500.0,0.00045753,120]
[330326957,1719258334792,-716.19,0.00045753,120]
[330326958,1719258335373,-9116.37,0.00045753,120]
[330326959,1719258335434,-673.44,0.00045753,120]
[330326960,1719258335477,-500.0,0.00045753,120]
[330326961,1719258335522,-1809.76,0.00045753,120]
[330326962,1719258335564,-1062.08,0.00045753,120]
[330326963,1719258335607,-1023.54,0.00045753,120]
[330326964,1719258335650,-500.0,0.00045753,120]
[330326965,1719258335698,-534.28,0.00045753,120]
[330326966,1719258335741,-841.28,0.00045753,120]
[330326967,1719258335784,-1199.38,0.00045753,120]
[330326968,1719258335826,-500.0,0.00045753,120]
[330326969,1719258335866,-500.0,0.00045753,120]
[330326970,1719258335908,-500.0,0.00045753,120]
[330326971,1719258335950,-909.82,0.00045753,120]
[330326972,1719258335994,-898.89,0.00045753,120]
[330326973,1719258336036,-829.07,0.00045753,120]
[330326974,1719258336080,-1703.05,0.00045753,120]
[330326975,1719258336125,-1358.16,0.00045753,120]
[330326976,1719258336180,-522.33,0.00045753,120]
[330326977,1719258336223,-500.0,0.00045753,120]
[330326978,1719258336269,-1570.64,0.00045753,120]
[330326979,1719258336318,-40546.37,0.00045753,120]
[330326980,1719258336362,-758.34,0.00045753,120]
[330326981,1719258336405,-5071.79,0.00045753,120]
[330326982,1719258336450,-500.0,0.00045753,120]
[330326983,1719258336496,-8129.85,0.00045753,120]
[330326984,1719258336540,-1395.41,0.00045753,120]
[330326985,1719258336583,-959.95,0.00045753,120]
[330326986,1719258336627,-1168.41,0.00045753,120]
[330326987,1719258336679,-500.0,0.00045753,120]
[330326988,1719258336723,-150.0,0.00045904,120]
[330326989,1719258336771,-150.0,0.0004591,120]
[330326990,1719258336816,-1000.0,0.00045911,30]
[330326991,1719258336863,-166.6666667,0.00045919,30]
[330326992,1719258336917,-50000.0,0.00046,36]
[330326993,1719258336966,-167.7,0.00046,96]
[330326994,1719258337012,-1000.0,0.00046,30]
[330326995,1719258337057,-1000.0,0.00046,120]
[330326996,1719258337101,-1000.0,0.00046,120]
[330326997,1719258337147,-1000.0,0.00046,120]
[330326998,1719258337190,-500.0,0.00046026,30]
[330326999,1719258337233,-501.29257497,0.00046026,30]
[330327000,1719258337278,-500.0,0.00046026,30]
[330327001,1719258337320,-500.0,0.00046026,30]
[330327002,1719258337364,-500.0,0.00046027,120]
[330327003,1719258337407,-662.41,0.00046027,120]
[330327004,1719258337448,-500.0,0.00046027,120]
[330327005,1719258337492,-500.0,0.00046027,120]
[330327006,1719258337536,-212.36696582,0.00046027,120]
[330327007,1719258337577,-703.65,0.00046027,120]
[330327008,1719258337620,-574.53,0.00046027,120]
[330327009,1719258337663,-370.74,0.00046027,120]
[330327010,1719258337708,-500.0,0.00046027,120]
[330327011,1719258337753,-500.0,0.00046027,120]
[330327012,1719258337798,-1500.0,0.00046027,120]
[330327013,1719258337844,-531.7,0.00046027,120]
[330327014,1719258337901,-557.88,0.00046027,120]
[330327015,1719258337945,-500.0,0.00046027,120]
[330327016,1719258337990,-533.67,0.00046027,120]
[330327017,1719258338039,-783.5,0.00046027,120]
[330327018,1719258338084,-1253.81,0.00046027,120]
[330327019,1719258338126,-500.0,0.00046027,120]
[330327020,1719258338180,-500.0,0.00046027,120]
[330327021,1719258338227,-1270.42,0.00046027,120]
[330327022,1719258338274,-900.35,0.00046027,120]
[330327023,1719258338318,-500.0,0.00046027,120]
[330327024,1719258338367,-500.0,0.00046027,120]
[330327025,1719258338416,-500.0,0.00046027,120]
[330327026,1719258338465,-1708.9,0.00046027,120]
[330327027,1719258338512,-500.0,0.00046027,120]
[330327028,1719258338600,-500.0,0.00046027,120]
[330327029,1719258338652,-500.0,0.00046027,120]
[330327030,1719258338695,-500.0,0.00046027,120]
[330327031,1719258338740,-500.0,0.00046027,120]
[330327032,1719258338786,-500.0,0.00046027,120]
[330327033,1719258338829,-500.0,0.00046027,120]
[330327034,1719258338877,-500.0,0.00046027,120]
[330327035,1719258338924,-500.0,0.00046027,120]
[330327036,1719258338969,-1042.74,0.00046027,120]
[330327037,1719258339014,-500.0,0.00046027,120]
[330327038,1719258339058,-500.0,0.00046027,120]
[330327039,1719258339103,-500.0,0.00046027,120]
[330327040,1719258339150,-1093.23,0.00046027,120]
[330327041,1719258339196,-500.0,0.00046027,120]
[330327042,1719258339243,-605.73,0.00046027,120]
[330327043,1719258339287,-500.0,0.00046027,120]
[330327044,1719258339337,-500.0,0.00046027,120]
[330327045,1719258339381,-500.0,0.00046027,120]
[330327046,1719258339429,-194.60575006,0.00046027,120]
[330327047,1719258339475,-500.0,0.00046027,120]
[330327048,1719258339522,-785.26,0.00046027,120]
[330327049,1719258339569,-500.0,0.00046027,120]
[330327050,1719258339614,-500.0,0.00046027,120]
[330327051,1719258339661,-838.61,0.00046027,120]
[330327052,1719258339710,-500.0,0.00046027,120]
[330327053,1719258339754,-500.0,0.00046027,120]
[330327054,1719258339797,-500.0,0.00046027,120]
[330327055,1719258339840,-500.0,0.00046027,120]
[330327056,1719258339882,-500.0,0.00046027,120]
[330327057,1719258339928,-500.0,0.00046027,120]
[330327058,1719258339974,-500.0,0.00046027,120]
[330327059,1719258340020,-320.25719886,0.00046027,120]
[330327060,1719258340066,-500.0,0.00046027,120]
[330327061,1719258340111,-500.0,0.00046027,120]
[330327062,1719258340154,-500.0,0.00046027,120]
[330327063,1719258340198,-655.63,0.00046027,120]
[330327064,1719258340242,-594.12,0.00046027,120]
[330327065,1719258340286,-500.0,0.00046027,120]
[330327066,1719258340327,-500.0,0.00046027,120]
[330327067,1719258340371,-849.72,0.00046027,120]
[330327068,1719258340415,-500.0,0.00046027,120]
[330327069,1719258340459,-500.0,0.00046027,120]
[330327070,1719258340504,-500.0,0.00046027,120]
[330327071,1719258340548,-529.21,0.00046027,120]
[330327072,1719258340592,-567.01,0.00046027,120]
[330327073,1719258340636,-447.27982754,0.00046027,120]
[330327074,1719258340690,-523.96317523,0.00046027,120]
[330327075,1719258340738,-500.0,0.00046027,120]
[330327076,1719258340783,-500.0,0.00046027,120]
[330327077,1719258340826,-375.2295069,0.00046027,120]
[330327078,1719258340868,-500.0,0.00046027,120]
[330327079,1719258340913,-500.0,0.00046027,120]
[330327080,1719258340960,-500.0,0.00046027,120]
[330327081,1719258341007,-500.0,0.00046027,120]
[330327082,1719258341054,-500.0,0.00046027,120]
[330327083,1719258341105,-500.0,0.00046027,120]
[330327084,1719258341161,-500.0,0.00046027,120]